[Event "Live Chess"]
[Site "Chess.com"]
[Date "2024.06.01"]
[Round "-"]
[White "lateforthesky"]
[Black "upoe610"]
[Result "0-1"]
[WhiteElo "2132"]
[BlackElo "2220"]
[TimeControl "300"]
[EndTime "14:46:35 PDT"]
[Termination "upoe610 won by checkmate"]

1. e4 {[%clk 0:04:54]} 1... e5 {[%clk 0:04:53.8]} 2. Nf3 {[%clk 0:04:53.1]} 2...
Nc6 {[%clk 0:04:36.2]} 3. Bb5 {[%clk 0:04:51.8]} 3... a6 {[%clk 0:04:34.8]} 4.
Ba4 {[%clk 0:04:50]} 4... Nf6 {[%clk 0:04:33.7]} 5. O-O {[%clk 0:04:48.1]} 5...
Be7 {[%clk 0:04:31.6]} 6. Qe2 {[%clk 0:04:44.2]} 6... b5 {[%clk 0:04:29.4]} 7.
Bb3 {[%clk 0:04:43.3]} 7... O-O {[%clk 0:04:26.6]} 8. Rd1 {[%clk 0:04:39.3]}
8... d5 {[%clk 0:04:25.3]} 9. d3 {[%clk 0:04:37.5]} 9... Bg4 {[%clk 0:04:22.1]}
10. h3 {[%clk 0:04:35]} 10... Nd4 {[%clk 0:04:21]} 11. Qe3 {[%clk 0:04:29.5]}
11... Nxf3+ {[%clk 0:04:19.9]} 12. gxf3 {[%clk 0:04:28.4]} 12... Bxh3 {[%clk
0:04:18.5]} 13. exd5 {[%clk 0:04:25.2]} 13... Nxd5 {[%clk 0:04:16.6]} 14. Qe4
{[%clk 0:04:22.8]} 14... c6 {[%clk 0:04:12.5]} 15. Nc3 {[%clk 0:04:19.3]} 15...
Bg5 {[%clk 0:04:10.4]} 16. Qxe5 {[%clk 0:04:01.3]} 16... Bxc1 {[%clk 0:04:04.1]}
17. Raxc1 {[%clk 0:03:58.8]} 17... Re8 {[%clk 0:04:03]} 18. Qg3 {[%clk
0:03:57.5]} 18... Qd7 {[%clk 0:03:59.8]} 19. Nxd5 {[%clk 0:03:55.1]} 19... cxd5
{[%clk 0:03:58.9]} 20. Bxd5 {[%clk 0:03:53.9]} 20... Qxd5 {[%clk 0:03:54.7]} 21.
Qxh3 {[%clk 0:03:53]} 21... Re5 {[%clk 0:03:52.9]} 22. Re1 {[%clk 0:03:45.6]}
22... Rh5 {[%clk 0:03:51.1]} 23. c4 {[%clk 0:03:16]} 23... Qc5 {[%clk
0:03:26.1]} 24. b4 {[%clk 0:03:10.6]} 24... Qg5+ {[%clk 0:03:23.9]} 25. Qg3
{[%clk 0:03:07.6]} 25... Qh6 {[%clk 0:03:21.4]} 26. f4 {[%clk 0:02:53.1]} 26...
Rh3 {[%clk 0:03:15.6]} 27. Qg5 {[%clk 0:02:45.6]} 27... Rh1+ {[%clk 0:03:13]}
28. Kg2 {[%clk 0:02:43.7]} 28... Qh3# {[%clk 0:03:12.5]} 0-1

[Event "Live Chess"]
[Site "Chess.com"]
[Date "2024.06.01"]
[Round "-"]
[White "BearFromUkraine"]
[Black "KeithArkell"]
[Result "0-1"]
[WhiteElo "1071"]
[BlackElo "2416"]
[TimeControl "300"]
[EndTime "14:46:40 PDT"]
[Termination "KeithArkell won by resignation"]

1. e4 {[%clk 0:04:53.4]} 1... c6 {[%clk 0:04:59.5]} 2. d4 {[%clk 0:04:51.4]}
2... d5 {[%clk 0:04:58.9]} 3. exd5 {[%clk 0:04:50.6]} 3... cxd5 {[%clk
0:04:58.3]} 4. Nc3 {[%clk 0:04:48.9]} 4... Nf6 {[%clk 0:04:57.6]} 5. Nf3 {[%clk
0:04:47.7]} 5... Nc6 {[%clk 0:04:57.1]} 6. Bb5 {[%clk 0:04:46.7]} 6... Bg4
{[%clk 0:04:56.4]} 7. O-O {[%clk 0:04:44.9]} 7... e6 {[%clk 0:04:55.4]} 8. h3
{[%clk 0:04:43.2]} 8... Bxf3 {[%clk 0:04:54.8]} 9. Qxf3 {[%clk 0:04:42.1]} 9...
Be7 {[%clk 0:04:54.6]} 10. Bg5 {[%clk 0:04:40.7]} 10... O-O {[%clk 0:04:54.5]}
11. Bxf6 {[%clk 0:04:39.8]} 11... Bxf6 {[%clk 0:04:53.6]} 12. Rfe1 {[%clk
0:04:38.6]} 12... Nxd4 {[%clk 0:04:52.8]} 13. Qd1 {[%clk 0:04:29.2]} 13... Nxb5
{[%clk 0:04:51.6]} 14. Nxb5 {[%clk 0:04:27.8]} 14... Qb6 {[%clk 0:04:50.9]} 15.
a4 {[%clk 0:04:24.8]} 15... a6 {[%clk 0:04:49.9]} 16. Nc3 {[%clk 0:04:18.6]}
16... Qxb2 {[%clk 0:04:48.7]} 17. Qd2 {[%clk 0:04:14.8]} 17... Bxc3 {[%clk
0:04:47]} 0-1

[Event "Live Chess"]
[Site "Chess.com"]
[Date "2024.06.01"]
[Round "-"]
[White "MagnersCarlsberg2870"]
[Black "agamilewska"]
[Result "0-1"]
[WhiteElo "1750"]
[BlackElo "1772"]
[TimeControl "300"]
[EndTime "14:46:52 PDT"]
[Termination "agamilewska won by resignation"]

1. Nf3 {[%clk 0:04:55.6]} 1... d5 {[%clk 0:04:58.9]} 2. e4 {[%clk 0:04:54.6]}
2... dxe4 {[%clk 0:04:57.9]} 3. Ng5 {[%clk 0:04:53.1]} 3... Nf6 {[%clk
0:04:57.1]} 4. d3 {[%clk 0:04:51.6]} 4... exd3 {[%clk 0:04:48]} 5. Bxd3 {[%clk
0:04:50.5]} 5... Nc6 {[%clk 0:04:28.9]} 6. Nc3 {[%clk 0:04:48]} 6... h6 {[%clk
0:04:26.3]} 7. Nf3 {[%clk 0:04:45.7]} 7... Bg4 {[%clk 0:04:23.8]} 8. Bf4 {[%clk
0:04:42.2]} 8... e6 {[%clk 0:04:17.1]} 9. Qe2 {[%clk 0:04:38.4]} 9... Bb4 {[%clk
0:04:15]} 10. Bd2 {[%clk 0:04:33.5]} 10... Nd4 {[%clk 0:04:10.4]} 11. Qd1 {[%clk
0:04:24.3]} 11... Bxf3 {[%clk 0:04:02.1]} 12. gxf3 {[%clk 0:04:22.8]} 12... Bxc3
{[%clk 0:03:42.5]} 13. Bxc3 {[%clk 0:04:17.4]} 13... c5 {[%clk 0:03:41.8]} 14.
Bxd4 {[%clk 0:04:11.1]} 14... Qxd4 {[%clk 0:03:33.3]} 15. Bb5+ {[%clk
0:04:03.6]} 15... Nd7 {[%clk 0:03:31.9]} 16. Qe2 {[%clk 0:03:57]} 16... O-O-O
{[%clk 0:03:12.6]} 17. Rd1 {[%clk 0:03:53.6]} 17... Qb4+ {[%clk 0:03:11.9]} 18.
Kf1 {[%clk 0:03:51]} 18... Nf6 {[%clk 0:03:02.2]} 19. c3 {[%clk 0:03:38.2]}
19... Qh4 {[%clk 0:02:56.1]} 20. b4 {[%clk 0:03:10.2]} 20... Rxd1+ {[%clk
0:02:48.5]} 21. Qxd1 {[%clk 0:03:08.9]} 21... cxb4 {[%clk 0:02:47.1]} 22. cxb4
{[%clk 0:03:06.9]} 22... Qxb4 {[%clk 0:02:44.7]} 23. Qe2 {[%clk 0:02:51.4]}
23... Qb1+ {[%clk 0:02:35.9]} 24. Kg2 {[%clk 0:02:49.5]} 24... Qg6+ {[%clk
0:02:35.1]} 25. Kh3 {[%clk 0:02:41.3]} 25... Qf5+ {[%clk 0:02:29.3]} 26. Kg2
{[%clk 0:02:37.6]} 26... Nd5 {[%clk 0:02:24.9]} 27. Rc1+ {[%clk 0:02:34.3]}
27... Kb8 {[%clk 0:02:23.6]} 28. Kh1 {[%clk 0:02:22.9]} 28... Rc8 {[%clk
0:02:08.7]} 29. Rxc8+ {[%clk 0:02:18.2]} 29... Kxc8 {[%clk 0:02:07.5]} 30. Qc4+
{[%clk 0:02:16.9]} 30... Nc7 {[%clk 0:01:49.5]} 31. Qb4 {[%clk 0:02:02.2]} 31...
Qxb5 {[%clk 0:01:40]} 0-1

[Event "Live Chess"]
[Site "Chess.com"]
[Date "2024.06.01"]
[Round "-"]
[White "koekoekoe"]
[Black "kylet1990"]
[Result "1-0"]
[WhiteElo "2010"]
[BlackElo "731"]
[TimeControl "300"]
[EndTime "14:46:54 PDT"]
[Termination "koekoekoe won by checkmate"]

1. d4 {[%clk 0:04:59.3]} 1... c6 {[%clk 0:04:57.5]} 2. Bf4 {[%clk 0:04:58.7]}
2... d5 {[%clk 0:04:56.7]} 3. e3 {[%clk 0:04:58.3]} 3... Bf5 {[%clk 0:04:55.8]}
4. c4 {[%clk 0:04:57.7]} 4... e6 {[%clk 0:04:54.8]} 5. Nc3 {[%clk 0:04:57.3]}
5... c5 {[%clk 0:04:50.1]} 6. Nf3 {[%clk 0:04:56.4]} 6... cxd4 {[%clk
0:04:48.7]} 7. Nxd4 {[%clk 0:04:56.3]} 7... Bb4 {[%clk 0:04:44.3]} 8. Nxf5
{[%clk 0:04:53.8]} 8... Bxc3+ {[%clk 0:04:42]} 9. bxc3 {[%clk 0:04:52]} 9...
exf5 {[%clk 0:04:40.7]} 10. cxd5 {[%clk 0:04:49]} 10... Qa5 {[%clk 0:04:36]} 11.
Qd4 {[%clk 0:04:40.1]} 11... Nf6 {[%clk 0:04:30.5]} 12. Bc4 {[%clk 0:04:35.6]}
12... O-O {[%clk 0:04:25.1]} 13. O-O {[%clk 0:04:32.4]} 13... Rd8 {[%clk
0:04:13.8]} 14. Rfd1 {[%clk 0:04:27.8]} 14... b5 {[%clk 0:03:59.2]} 15. Bb3
{[%clk 0:04:25]} 15... Na6 {[%clk 0:03:48.2]} 16. d6 {[%clk 0:04:15.9]} 16...
Ne4 {[%clk 0:03:39.3]} 17. Rac1 {[%clk 0:04:08.8]} 17... h6 {[%clk 0:03:33.4]}
18. Qd5 {[%clk 0:04:03.5]} 18... Nac5 {[%clk 0:03:20.3]} 19. Qxf7+ {[%clk
0:04:00.3]} 19... Kh8 {[%clk 0:03:16.9]} 20. Be5 {[%clk 0:03:53.9]} 20... Rg8
{[%clk 0:03:00.8]} 21. Qxf5 {[%clk 0:03:25.6]} 21... Raf8 {[%clk 0:02:49.2]} 22.
Qh5 {[%clk 0:03:20.8]} 22... Nxf2 {[%clk 0:02:44.8]} 23. Qxh6# {[%clk
0:03:17.7]} 1-0

[Event "Live Chess"]
[Site "Chess.com"]
[Date "2024.06.01"]
[Round "-"]
[White "willc-h99"]
[Black "Queensandpawns"]
[Result "1-0"]
[WhiteElo "2625"]
[BlackElo "2378"]
[TimeControl "300"]
[EndTime "14:47:01 PDT"]
[Termination "willc-h99 won by resignation"]

1. d4 {[%clk 0:04:55.6]} 1... e5 {[%clk 0:04:54.6]} 2. dxe5 {[%clk 0:04:53.8]}
2... Nc6 {[%clk 0:04:54.2]} 3. Nf3 {[%clk 0:04:52.3]} 3... Qe7 {[%clk
0:04:53.8]} 4. Nc3 {[%clk 0:04:41.9]} 4... Nxe5 {[%clk 0:04:49]} 5. e4 {[%clk
0:04:32.6]} 5... Nxf3+ {[%clk 0:04:47.4]} 6. Qxf3 {[%clk 0:04:31.3]} 6... Nf6
{[%clk 0:04:46.9]} 7. Bg5 {[%clk 0:04:28.6]} 7... c6 {[%clk 0:04:43.9]} 8. O-O-O
{[%clk 0:04:24.6]} 8... Qe5 {[%clk 0:04:42.9]} 9. Bf4 {[%clk 0:04:12]} 9... Qa5
{[%clk 0:04:41.5]} 10. Bc4 {[%clk 0:04:04.5]} 10... b5 {[%clk 0:04:39.5]} 11.
Bb3 {[%clk 0:04:03.4]} 11... Bb4 {[%clk 0:04:36.8]} 12. e5 {[%clk 0:03:51.7]}
12... Bxc3 {[%clk 0:04:28.7]} 13. exf6 {[%clk 0:03:50.4]} 13... Bxf6 {[%clk
0:04:22.1]} 14. Rhe1+ {[%clk 0:03:48.2]} 14... Kd8 {[%clk 0:04:21.7]} 15. Qxc6
{[%clk 0:03:42.7]} 15... Qb6 {[%clk 0:04:03]} 16. Qxa8 {[%clk 0:03:33.6]} 1-0

[Event "Live Chess"]
[Site "Chess.com"]
[Date "2024.06.01"]
[Round "-"]
[White "imchessive"]
[Black "Duke_of_Bebington"]
[Result "0-1"]
[WhiteElo "1587"]
[BlackElo "1642"]
[TimeControl "300"]
[EndTime "14:47:08 PDT"]
[Termination "Duke_of_Bebington won by resignation"]

1. d4 {[%clk 0:04:58.8]} 1... d5 {[%clk 0:04:58.8]} 2. c4 {[%clk 0:04:57.3]}
2... c6 {[%clk 0:04:57.6]} 3. Nf3 {[%clk 0:04:56.2]} 3... Nf6 {[%clk 0:04:53.1]}
4. g3 {[%clk 0:04:55]} 4... Bf5 {[%clk 0:04:51]} 5. Nc3 {[%clk 0:04:53.5]} 5...
e6 {[%clk 0:04:49]} 6. cxd5 {[%clk 0:04:52]} 6... exd5 {[%clk 0:04:47.9]} 7. Bg2
{[%clk 0:04:50]} 7... Nbd7 {[%clk 0:04:46.4]} 8. O-O {[%clk 0:04:48.3]} 8... Bd6
{[%clk 0:04:45.9]} 9. Re1 {[%clk 0:04:45.3]} 9... O-O {[%clk 0:04:45.4]} 10. Nd2
{[%clk 0:04:43.4]} 10... Re8 {[%clk 0:04:43.8]} 11. a3 {[%clk 0:04:32.8]} 11...
Nb6 {[%clk 0:04:39.7]} 12. e4 {[%clk 0:04:24.2]} 12... dxe4 {[%clk 0:04:35.4]}
13. Ndxe4 {[%clk 0:04:22.7]} 13... Nxe4 {[%clk 0:04:33.2]} 14. Bxe4 {[%clk
0:04:10.9]} 14... Bxe4 {[%clk 0:04:30.4]} 15. Nxe4 {[%clk 0:04:06.2]} 15... Be7
{[%clk 0:04:23.9]} 16. Qb3 {[%clk 0:03:51.9]} 16... Qxd4 {[%clk 0:04:14.2]} 17.
Bf4 {[%clk 0:03:23.8]} 17... Nd5 {[%clk 0:03:40.8]} 18. Rad1 {[%clk 0:03:18.9]}
18... Qb6 {[%clk 0:03:36.7]} 19. Bd6 {[%clk 0:03:13.4]} 19... Qxb3 {[%clk
0:03:31.6]} 0-1

[Event "Live Chess"]
[Site "Chess.com"]
[Date "2024.06.01"]
[Round "-"]
[White "Andorranarmy"]
[Black "gmnorfolk"]
[Result "0-1"]
[WhiteElo "2001"]
[BlackElo "2109"]
[TimeControl "300"]
[EndTime "14:47:09 PDT"]
[Termination "gmnorfolk won by checkmate"]

1. e4 {[%clk 0:04:58.4]} 1... c5 {[%clk 0:04:56.7]} 2. Nc3 {[%clk 0:04:57.1]}
2... Nc6 {[%clk 0:04:53.6]} 3. Nf3 {[%clk 0:04:56.4]} 3... g6 {[%clk 0:04:49.5]}
4. d4 {[%clk 0:04:55.9]} 4... cxd4 {[%clk 0:04:48.7]} 5. Nxd4 {[%clk 0:04:55.8]}
5... Bg7 {[%clk 0:04:47.2]} 6. Be3 {[%clk 0:04:55.4]} 6... Nf6 {[%clk
0:04:44.9]} 7. f3 {[%clk 0:04:53.2]} 7... O-O {[%clk 0:04:43.4]} 8. Qd2 {[%clk
0:04:52.3]} 8... d5 {[%clk 0:04:42.5]} 9. O-O-O {[%clk 0:04:42]} 9... e5 {[%clk
0:04:39.4]} 10. Nxc6 {[%clk 0:04:37.2]} 10... bxc6 {[%clk 0:04:38.4]} 11. exd5
{[%clk 0:04:34.3]} 11... cxd5 {[%clk 0:04:36.5]} 12. Nxd5 {[%clk 0:04:33.3]}
12... Nxd5 {[%clk 0:04:33.2]} 13. Qxd5 {[%clk 0:04:32.2]} 13... Qc7 {[%clk
0:04:20.6]} 14. Bc5 {[%clk 0:03:47]} 14... Be6 {[%clk 0:04:04.9]} 15. Qd6 {[%clk
0:03:26.4]} 15... Qa5 {[%clk 0:03:54.5]} 16. a3 {[%clk 0:03:05.6]} 16... Rfd8
{[%clk 0:03:43.6]} 17. Qc6 {[%clk 0:02:47.8]} 17... Bh6+ {[%clk 0:03:39.2]} 18.
Kb1 {[%clk 0:02:40.8]} 18... Rxd1# {[%clk 0:03:36.3]} 0-1

[Event "Live Chess"]
[Site "Chess.com"]
[Date "2024.06.01"]
[Round "-"]
[White "peteopeteo"]
[Black "gobbles19"]
[Result "0-1"]
[WhiteElo "1574"]
[BlackElo "2274"]
[TimeControl "300"]
[EndTime "14:47:26 PDT"]
[Termination "gobbles19 won by resignation"]

1. e4 {[%clk 0:04:59.4]} 1... Nf6 {[%clk 0:04:56.7]} 2. Nc3 {[%clk 0:04:56.6]}
2... d6 {[%clk 0:04:55.6]} 3. Nf3 {[%clk 0:04:54.8]} 3... g6 {[%clk 0:04:55.1]}
4. d4 {[%clk 0:04:54]} 4... Bg7 {[%clk 0:04:54.6]} 5. Bd3 {[%clk 0:04:51.8]}
5... O-O {[%clk 0:04:51.4]} 6. Be3 {[%clk 0:04:51.2]} 6... Na6 {[%clk
0:04:49.8]} 7. a3 {[%clk 0:04:45.1]} 7... Ng4 {[%clk 0:04:40.5]} 8. Bd2 {[%clk
0:04:39.5]} 8... c5 {[%clk 0:04:39.3]} 9. Ne2 {[%clk 0:04:31.2]} 9... cxd4
{[%clk 0:04:34.4]} 10. Nfxd4 {[%clk 0:04:29.5]} 10... Nc5 {[%clk 0:04:18.9]} 11.
O-O {[%clk 0:04:17.9]} 11... Nxd3 {[%clk 0:04:04.8]} 12. cxd3 {[%clk 0:04:17.8]}
12... Bd7 {[%clk 0:03:59.8]} 13. h3 {[%clk 0:04:16.6]} 13... Ne5 {[%clk
0:03:58.4]} 14. Be3 {[%clk 0:04:10.2]} 14... Rc8 {[%clk 0:03:54.6]} 15. Rc1
{[%clk 0:04:08.3]} 15... a6 {[%clk 0:03:51.5]} 16. Nc3 {[%clk 0:03:56.1]} 16...
Nc6 {[%clk 0:03:02.4]} 17. Nxc6 {[%clk 0:03:27]} 17... Bxc6 {[%clk 0:03:01.5]}
18. d4 {[%clk 0:03:21]} 18... Kh8 {[%clk 0:03:00]} 19. d5 {[%clk 0:03:16.7]}
19... Bd7 {[%clk 0:02:59]} 20. Ne2 {[%clk 0:03:09.3]} 20... Bb5 {[%clk
0:02:24.5]} 21. Nd4 {[%clk 0:03:02.9]} 21... Bxf1 {[%clk 0:02:22.2]} 22. Kxf1
{[%clk 0:02:58.9]} 22... Rxc1 {[%clk 0:02:20.8]} 23. Qxc1 {[%clk 0:02:58.8]}
23... Qd7 {[%clk 0:02:20.2]} 24. Qd1 {[%clk 0:02:46.5]} 24... Rc8 {[%clk
0:02:18.3]} 25. Nf3 {[%clk 0:02:36]} 25... Qb5+ {[%clk 0:02:13.7]} 26. Kg1
{[%clk 0:02:34.3]} 26... Qxb2 {[%clk 0:02:11.5]} 27. Ng5 {[%clk 0:02:33]} 27...
Kg8 {[%clk 0:02:06.8]} 28. Qf3 {[%clk 0:02:30]} 28... Qf6 {[%clk 0:01:55.1]} 29.
Qg4 {[%clk 0:02:26.7]} 29... Rc2 {[%clk 0:01:38.2]} 30. Qh4 {[%clk 0:02:14.6]}
30... h6 {[%clk 0:01:32.1]} 31. Nf3 {[%clk 0:02:06.8]} 31... Qxh4 {[%clk
0:01:31.2]} 32. Nxh4 {[%clk 0:02:06.7]} 32... Ra2 {[%clk 0:01:29]} 33. Nf3
{[%clk 0:01:55.3]} 33... Rxa3 {[%clk 0:01:26.9]} 34. Bc1 {[%clk 0:01:52.3]}
34... Ra1 {[%clk 0:01:25.4]} 0-1

[Event "Live Chess"]
[Site "Chess.com"]
[Date "2024.06.01"]
[Round "-"]
[White "CheckThis4"]
[Black "WelshTiger"]
[Result "1-0"]
[WhiteElo "2681"]
[BlackElo "2512"]
[TimeControl "300"]
[EndTime "14:47:36 PDT"]
[Termination "CheckThis4 won by resignation"]

1. d4 {[%clk 0:04:54.9]} 1... d5 {[%clk 0:04:58.3]} 2. Nf3 {[%clk 0:04:52.1]}
2... Nf6 {[%clk 0:04:56]} 3. c4 {[%clk 0:04:51]} 3... dxc4 {[%clk 0:04:55.4]} 4.
e3 {[%clk 0:04:44.2]} 4... Bg4 {[%clk 0:04:54.3]} 5. Bxc4 {[%clk 0:04:36.6]}
5... e6 {[%clk 0:04:53.8]} 6. Nbd2 {[%clk 0:04:35.2]} 6... Nbd7 {[%clk
0:04:47.5]} 7. h3 {[%clk 0:04:34.1]} 7... Bh5 {[%clk 0:04:46.2]} 8. g4 {[%clk
0:04:25.1]} 8... Bg6 {[%clk 0:04:43.3]} 9. Nh4 {[%clk 0:04:21]} 9... Be7 {[%clk
0:04:36.7]} 10. Nxg6 {[%clk 0:04:16.8]} 10... hxg6 {[%clk 0:04:35.3]} 11. b3
{[%clk 0:04:08.3]} 11... c5 {[%clk 0:04:17.9]} 12. Bb2 {[%clk 0:04:06.8]} 12...
a6 {[%clk 0:04:06.3]} 13. g5 {[%clk 0:03:55.1]} 13... Nd5 {[%clk 0:03:54.6]} 14.
Bxd5 {[%clk 0:03:47.1]} 14... exd5 {[%clk 0:03:54.5]} 15. dxc5 {[%clk
0:03:44.4]} 15... Nxc5 {[%clk 0:03:49]} 16. Bxg7 {[%clk 0:03:42]} 16... Rh7
{[%clk 0:03:35.4]} 17. Bd4 {[%clk 0:03:40.3]} 17... Ne6 {[%clk 0:03:26.9]} 18.
Nf3 {[%clk 0:03:36.2]} 18... Bxg5 {[%clk 0:03:16.6]} 19. Rc1 {[%clk 0:03:26.2]}
19... Rc8 {[%clk 0:03:06.3]} 20. Nxg5 {[%clk 0:02:37.8]} 20... Nxg5 {[%clk
0:02:47.9]} 21. Ke2 {[%clk 0:02:09.4]} 21... Rxc1 {[%clk 0:02:11.4]} 22. Qxc1
{[%clk 0:02:09.3]} 22... Rxh3 {[%clk 0:02:09.9]} 23. Rxh3 {[%clk 0:01:52.7]}
23... Nxh3 {[%clk 0:02:08.9]} 24. Qh1 {[%clk 0:01:50.7]} 24... Qd7 {[%clk
0:02:01.6]} 25. Qg2 {[%clk 0:01:44.6]} 25... Qf5 {[%clk 0:01:55.1]} 26. f4
{[%clk 0:01:35.7]} 26... g5 {[%clk 0:01:45]} 27. Kd2 {[%clk 0:01:08.7]} 27...
gxf4 {[%clk 0:01:32.7]} 28. Qg8+ {[%clk 0:01:07.5]} 28... Kd7 {[%clk 0:01:31.8]}
29. Qb8 {[%clk 0:01:06.6]} 29... fxe3+ {[%clk 0:01:29.7]} 30. Bxe3 {[%clk
0:01:05.4]} 30... Kc6 {[%clk 0:01:14.1]} 31. Qa7 {[%clk 0:01:03.9]} 31... Qc8
{[%clk 0:01:02.6]} 32. Qc5+ {[%clk 0:00:53.9]} 32... Kd7 {[%clk 0:01:01.5]} 33.
Qxd5+ {[%clk 0:00:52.9]} 33... Ke8 {[%clk 0:00:57.5]} 34. Qe5+ {[%clk
0:00:50.2]} 34... Qe6 {[%clk 0:00:44.1]} 35. Qb8+ {[%clk 0:00:47.8]} 35... Ke7
{[%clk 0:00:36.3]} 36. Qxb7+ {[%clk 0:00:46.9]} 36... Kf8 {[%clk 0:00:34.7]} 37.
Qb8+ {[%clk 0:00:44]} 37... Qe8 {[%clk 0:00:28.2]} 38. Bc5+ {[%clk 0:00:40.5]}
38... Kg7 {[%clk 0:00:27.1]} 39. Qxe8 {[%clk 0:00:38.5]} 1-0

[Event "Live Chess"]
[Site "Chess.com"]
[Date "2024.06.01"]
[Round "-"]
[White "FlyingChessKestrel13"]
[Black "NAZRIZ1977"]
[Result "1-0"]
[WhiteElo "2068"]
[BlackElo "2139"]
[TimeControl "300"]
[EndTime "14:47:39 PDT"]
[Termination "FlyingChessKestrel13 won by resignation"]

1. e4 {[%clk 0:04:57]} 1... c5 {[%clk 0:04:57]} 2. Nf3 {[%clk 0:04:55]} 2... d6
{[%clk 0:04:55.9]} 3. Bb5+ {[%clk 0:04:54]} 3... Bd7 {[%clk 0:04:54.8]} 4. c4
{[%clk 0:04:53.3]} 4... g6 {[%clk 0:04:53.3]} 5. O-O {[%clk 0:04:51.7]} 5... Bg7
{[%clk 0:04:52.3]} 6. Nc3 {[%clk 0:04:51.2]} 6... Nf6 {[%clk 0:04:51.1]} 7. d4
{[%clk 0:04:49.5]} 7... cxd4 {[%clk 0:04:49.9]} 8. Nxd4 {[%clk 0:04:49.4]} 8...
O-O {[%clk 0:04:48.8]} 9. Be3 {[%clk 0:04:47.8]} 9... Ng4 {[%clk 0:04:42.1]} 10.
Bg5 {[%clk 0:04:45.6]} 10... Nc6 {[%clk 0:04:33.1]} 11. Nxc6 {[%clk 0:04:43.1]}
11... bxc6 {[%clk 0:04:27.6]} 12. Bxc6 {[%clk 0:04:41]} 12... Nxf2 {[%clk
0:04:19.5]} 13. Rxf2 {[%clk 0:04:27.7]} 13... Bxc6 {[%clk 0:04:18.4]} 14. Be3
{[%clk 0:04:24.4]} 14... Bxc3 {[%clk 0:04:11.7]} 15. bxc3 {[%clk 0:04:23.2]}
15... Bxe4 {[%clk 0:04:08.1]} 16. Bh6 {[%clk 0:04:21.6]} 16... Re8 {[%clk
0:04:05.3]} 17. Qd4 {[%clk 0:04:20]} 1-0

[Event "Live Chess"]
[Site "Chess.com"]
[Date "2024.06.01"]
[Round "-"]
[White "Tushinskiy"]
[Black "Mangoalo"]
[Result "1-0"]
[WhiteElo "2251"]
[BlackElo "1064"]
[TimeControl "300"]
[EndTime "14:47:50 PDT"]
[Termination "Tushinskiy won by resignation"]

1. d4 {[%clk 0:04:51.1]} 1... Nf6 {[%clk 0:04:57.7]} 2. c3 {[%clk 0:04:51]} 2...
g6 {[%clk 0:04:56.3]} 3. Nf3 {[%clk 0:04:49]} 3... Bg7 {[%clk 0:04:56.2]} 4. Bf4
{[%clk 0:04:48.5]} 4... Nc6 {[%clk 0:04:53.9]} 5. Bg3 {[%clk 0:04:47.6]} 5... d5
{[%clk 0:04:53]} 6. Nbd2 {[%clk 0:04:47.5]} 6... Bg4 {[%clk 0:04:51.9]} 7. e3
{[%clk 0:04:47.4]} 7... Bxf3 {[%clk 0:04:51.2]} 8. gxf3 {[%clk 0:04:46]} 8...
O-O {[%clk 0:04:51.1]} 9. Qb3 {[%clk 0:04:37.4]} 9... e6 {[%clk 0:04:50.6]} 10.
h4 {[%clk 0:04:30.8]} 10... b6 {[%clk 0:04:49.3]} 11. Bd3 {[%clk 0:04:27.2]}
11... Nh5 {[%clk 0:04:47.7]} 12. Qa4 {[%clk 0:04:20.8]} 12... Na5 {[%clk
0:04:41]} 13. b4 {[%clk 0:04:19]} 13... Nc4 {[%clk 0:04:36.1]} 14. Nxc4 {[%clk
0:04:16.7]} 14... dxc4 {[%clk 0:04:36]} 15. Bxc4 {[%clk 0:04:16.4]} 15... Re8
{[%clk 0:04:27.1]} 16. Ke2 {[%clk 0:04:10.6]} 16... a5 {[%clk 0:04:24]} 17. b5
{[%clk 0:03:54]} 17... Qf6 {[%clk 0:04:08.9]} 18. Qc2 {[%clk 0:03:44.7]} 18...
Nxg3+ {[%clk 0:04:04.9]} 19. fxg3 {[%clk 0:03:43.2]} 19... Bh6 {[%clk
0:04:02.7]} 20. f4 {[%clk 0:03:41]} 20... Rad8 {[%clk 0:03:47.9]} 21. Raf1
{[%clk 0:03:33]} 21... Rd6 {[%clk 0:03:34.6]} 22. g4 {[%clk 0:03:27.8]} 22...
Bg7 {[%clk 0:03:26.7]} 23. g5 {[%clk 0:03:24.3]} 23... Qe7 {[%clk 0:03:17.6]}
24. h5 {[%clk 0:03:20.2]} 24... e5 {[%clk 0:03:09.9]} 25. dxe5 {[%clk
0:03:17.9]} 25... Rdd8 {[%clk 0:03:06]} 26. hxg6 {[%clk 0:03:15.9]} 26... hxg6
{[%clk 0:03:01.5]} 27. Qxg6 {[%clk 0:03:14]} 1-0

[Event "Live Chess"]
[Site "Chess.com"]
[Date "2024.06.01"]
[Round "-"]
[White "blunderabit"]
[Black "ACM42"]
[Result "0-1"]
[WhiteElo "1801"]
[BlackElo "2183"]
[TimeControl "300"]
[EndTime "14:48:07 PDT"]
[Termination "ACM42 won on time"]

1. e4 {[%clk 0:04:54.9]} 1... e6 {[%clk 0:04:57.8]} 2. d4 {[%clk 0:04:51.9]}
2... d5 {[%clk 0:04:51.7]} 3. Bd3 {[%clk 0:04:51.3]} 3... Nf6 {[%clk 0:04:47]}
4. e5 {[%clk 0:04:48.7]} 4... Nfd7 {[%clk 0:04:46.2]} 5. f4 {[%clk 0:04:47.4]}
5... c5 {[%clk 0:04:45.5]} 6. c3 {[%clk 0:04:45.8]} 6... Nc6 {[%clk 0:04:44.9]}
7. Nf3 {[%clk 0:04:43.7]} 7... Qb6 {[%clk 0:04:41.9]} 8. dxc5 {[%clk 0:04:31]}
8... Bxc5 {[%clk 0:04:39.8]} 9. Qe2 {[%clk 0:04:26.4]} 9... a5 {[%clk
0:04:37.3]} 10. Nbd2 {[%clk 0:04:08.4]} 10... a4 {[%clk 0:04:34.2]} 11. b4
{[%clk 0:03:50.3]} 11... axb3 {[%clk 0:04:14.3]} 12. Nxb3 {[%clk 0:03:48]} 12...
Na5 {[%clk 0:04:13.6]} 13. Nxc5 {[%clk 0:03:42.2]} 13... Nxc5 {[%clk 0:04:11.9]}
14. Bb5+ {[%clk 0:03:34.9]} 14... Bd7 {[%clk 0:04:08.3]} 15. Rb1 {[%clk
0:03:12.8]} 15... Qc7 {[%clk 0:03:46.9]} 16. O-O {[%clk 0:03:06.7]} 16... O-O
{[%clk 0:03:40.8]} 17. Ba3 {[%clk 0:02:48.2]} 17... Nc4 {[%clk 0:03:38.7]} 18.
Bxc4 {[%clk 0:02:22.1]} 18... Rxa3 {[%clk 0:03:34.7]} 19. Bb3 {[%clk 0:02:13.6]}
19... Ne4 {[%clk 0:03:23.3]} 20. c4 {[%clk 0:01:58.7]} 20... Qc5+ {[%clk
0:03:11.4]} 21. Kh1 {[%clk 0:01:53.6]} 21... Nc3 {[%clk 0:03:10.6]} 22. Qd3
{[%clk 0:01:31.3]} 22... Nxb1 {[%clk 0:03:08.6]} 23. Ng5 {[%clk 0:01:28.4]}
23... g6 {[%clk 0:03:07.6]} 24. Qh3 {[%clk 0:01:12.4]} 24... h5 {[%clk
0:03:05.8]} 25. Rxb1 {[%clk 0:00:38.6]} 25... dxc4 {[%clk 0:03:04.1]} 26. Ne4
{[%clk 0:00:37.2]} 26... Qb5 {[%clk 0:02:06.4]} 27. Nf6+ {[%clk 0:00:31]} 27...
Kg7 {[%clk 0:01:57.6]} 28. Nxh5+ {[%clk 0:00:19]} 28... gxh5 {[%clk 0:01:56.2]}
29. Qg3+ {[%clk 0:00:17.5]} 29... Kh7 {[%clk 0:01:49.9]} 30. Bc2+ {[%clk
0:00:15.1]} 30... Kh8 {[%clk 0:01:48.6]} 31. Qxa3 {[%clk 0:00:11.9]} 31... Qxb1+
{[%clk 0:01:39]} 32. Bxb1 {[%clk 0:00:09.9]} 32... Rc8 {[%clk 0:01:38.2]} 33.
Qh3 {[%clk 0:00:06.7]} 33... Kg7 {[%clk 0:01:36.2]} 34. Qxh5 {[%clk 0:00:05.6]}
34... Kf8 {[%clk 0:01:35.2]} 35. Qh8+ {[%clk 0:00:03]} 35... Ke7 {[%clk
0:01:34.2]} 36. Qf6+ {[%clk 0:00:02.5]} 36... Ke8 {[%clk 0:01:33]} 37. Bc2
{[%clk 0:00:01.1]} 37... c3 {[%clk 0:01:32]} 0-1